fUST/lending_fUST_20250818
["ID","MTS","AMOUNT","RATE_DAILY","PERIOD"]
[379977745,1755456640704,-480.0,0.00020273,2]
[379977746,1755456640714,-480.0,0.00020273,2]
[379977747,1755456640723,-480.0,0.00020273,2]
[379977748,1755456640732,-634.43,0.00020273,2]
[379977749,1755456640742,-480.0,0.00020273,2]
[379977750,1755456640751,-480.0,0.00020273,2]
[379977751,1755456640760,-487.17,0.00020273,2]
[379977752,1755456640770,-480.0,0.00020273,2]
[379977753,1755456640779,-480.0,0.00020273,2]
[379977754,1755456640789,-480.0,0.00020273,2]
[379977755,1755456640799,-480.0,0.00020273,2]
[379977756,1755456640808,-480.0,0.00020273,2]
[379977757,1755456640817,-480.0,0.00020273,2]
[379977758,1755456640827,-480.0,0.0002031,2]
[379977759,1755456640836,-500.0,0.00020336,2]
[379977760,1755456640845,-500.0,0.00020336,2]
[379977761,1755456640855,-500.0,0.00020336,2]
[379977762,1755456640864,-501.07153285,0.00020336,2]
[379977763,1755456640873,-520.92936452,0.00020336,2]
[379977764,1755456640883,-500.0,0.00020336,2]
[379977765,1755456640892,-500.0,0.00020336,2]
[379977766,1755456640902,-503.19760931,0.00020336,2]
[379977767,1755456640911,-500.0,0.00020336,2]
[379977768,1755456640921,-500.0,0.00020336,2]
[379977769,1755456640930,-500.0,0.00020336,2]
[379977770,1755456640939,-500.88053432,0.00020336,2]
[379977771,1755456640948,-500.0,0.00020336,2]
[379977772,1755456640957,-500.0,0.00020336,2]
[379977773,1755456640966,-500.0,0.00020336,2]
[379977774,1755456640975,-500.0,0.00020336,2]
[379977775,1755456640985,-500.0,0.00020336,2]
[379977776,1755456640994,-500.0,0.00020336,2]
[379977777,1755456641003,-500.0,0.00020383,2]
[379977778,1755456641012,-294.63198814,0.00020383,2]
[379977779,1755456641022,-377.08076169,0.00020383,2]
[379977780,1755456641031,-500.0,0.00020383,2]
[379977781,1755456641040,-500.0,0.00020396,2]
[379977782,1755456641049,-500.0,0.00020396,2]
[379977783,1755456641058,-500.0,0.00020396,2]
[379977784,1755456641067,-500.0,0.00020396,2]
[379977785,1755456641076,-6273.2022054,0.00020403,2]
[379977786,1755456641086,-500.0,0.00020413,2]
[379977787,1755456641095,-500.0,0.00020413,2]
[379977788,1755456641105,-480.0,0.00020547,2]
[379977789,1755456641115,-722.47,0.00020547,2]
[379977790,1755456641124,-1098.01,0.00020547,2]
[379977791,1755456641133,-480.0,0.00020547,2]
[379977792,1755456641144,-480.0,0.00020547,2]
[379977793,1755456641154,-480.0,0.00020547,2]
[379977794,1755456641164,-480.0,0.00020547,2]
[379977795,1755456641173,-634.43,0.00020547,2]
[379977796,1755456641182,-480.0,0.00020547,2]
[379977797,1755456641193,-480.0,0.00020547,2]
[379977798,1755456641203,-487.17,0.00020547,2]
[379977799,1755456641214,-480.0,0.00020547,2]
[379977800,1755456641229,-480.0,0.00020547,2]
[379977801,1755456641240,-480.0,0.00020547,2]
[379977802,1755456641251,-480.0,0.00020547,2]
[379977803,1755456641262,-480.0,0.00020547,2]
[379977804,1755456641272,-480.0,0.00020547,2]
[379977805,1755456641281,-380.39,0.00020584,2]
[379977806,1755456641291,-150.0,0.00020685,2]
[379977807,1755456641301,-12682.46447135,0.00020788,10]
[379977808,1755456641313,-407.27,0.00020788,3]
[379977810,1755456641324,-375.77065697,0.00020788,10]
[379977812,1755456641333,-417.15472785,0.00020788,10]
[379977814,1755456641342,-215.71995163,0.00020788,10]
[379977816,1755456641351,-160.0,0.000208,2]
[379977818,1755456641361,-480.0,0.00020821,2]
[379977820,1755456641371,-722.47,0.00020821,2]
[379977822,1755456641381,-1098.01,0.00020821,2]
[379977824,1755456641391,-480.0,0.00020821,2]
[379977826,1755456641400,-480.0,0.00020821,2]
[379977828,1755456641410,-480.0,0.00020821,2]
[379977830,1755456641420,-480.0,0.00020821,2]
[379977832,1755456641429,-634.43,0.00020821,2]
[379977834,1755456641439,-480.0,0.00020821,2]
[379977836,1755456641448,-480.0,0.00020821,2]
[379977838,1755456641458,-487.17,0.00020821,2]
[379977840,1755456641468,-480.0,0.00020821,2]
[379977842,1755456641477,-480.0,0.00020821,2]
[379977844,1755456641487,-480.0,0.00020821,2]
[379977846,1755456641496,-480.0,0.00020821,2]
[379977848,1755456641506,-480.0,0.00020821,2]
[379977850,1755456641515,-480.0,0.00020821,2]
[379977852,1755456641524,-481.93,0.00020856,3]
[379977854,1755456641534,-444.59860091,0.00020872,2]
[379977856,1755456641543,-297.77908351,0.00020884,2]
[379977858,1755456641552,-1000.0,0.00020884,2]
[379977860,1755456641561,-500.0,0.00020884,2]
[379977862,1755456641571,-1000.0,0.00020884,2]
[379977864,1755456641580,-500.0,0.00020884,2]
[379977866,1755456641590,-1000.0,0.00020884,2]
[379977868,1755456641599,-1000.0,0.00020884,2]
[379977870,1755456641609,-500.0,0.00020884,2]
[379977872,1755456641618,-500.0,0.00020884,2]
[379977874,1755456641627,-321.28,0.00020897,3]
[379977876,1755456641637,-160.64,0.00020897,3]
[379977878,1755456641646,-420.0,0.00020899,2]
[379977879,1755456641658,-6273.2022054,0.00020907,2]
[379977882,1755456641671,-1000.0,0.00020931,2]
[379977883,1755456641680,-1000.0,0.00020931,2]
[379977885,1755456641690,-1000.0,0.00020944,2]
[379977887,1755456641699,-500.0,0.00020944,2]
[379977889,1755456641708,-1000.0,0.00020944,2]
[379977891,1755456641718,-1000.0,0.00020944,2]
[379977893,1755456641727,-496.70651117,0.00020961,2]
[379977895,1755456641736,-1000.0,0.00020961,2]
[379977897,1755456641746,-160.0,0.00020972,2]
[379977899,1755456641755,-160.0,0.00020972,2]
[379977901,1755456641764,-160.0,0.00020972,2]
[379977903,1755456641774,-160.0,0.00020972,2]
[379977905,1755456641783,-215.71995163,0.00020972,2]
[379977907,1755456641792,-843.71309931,0.00020972,2]
[379977909,1755456641801,-216.83204348,0.00020972,2]
[379977911,1755456641810,-528.48506731,0.00020972,2]
[379977913,1755456641820,-375.77065697,0.00020972,2]
[379977915,1755456641829,-12682.46447135,0.00020972,2]
[379977917,1755456641838,-417.15472785,0.00020972,2]
[379977919,1755456641848,-232.1512529,0.00020972,2]
[379977921,1755456641857,-160.0,0.00020972,2]
[379977923,1755456641866,-160.0,0.00020972,2]
[379977925,1755456641875,-160.0,0.00020972,2]
[379977927,1755456641884,-160.0,0.00020972,2]
[379977929,1755456641894,-160.0,0.00020972,2]
[379977931,1755456641904,-160.0,0.00020972,2]
[379977933,1755456641913,-642.55,0.00021085,3]
[379977935,1755456641923,-480.0,0.00021095,2]
[379977937,1755456641932,-722.47,0.00021095,2]
[379977939,1755456641941,-1098.01,0.00021095,2]
[379977941,1755456641950,-292.43,0.00021095,2]
[379977943,1755456641959,-480.0,0.00021095,2]
[379977945,1755456641969,-308.14,0.00021095,2]
[379977947,1755456641979,-480.0,0.00021095,2]
[379977949,1755456641988,-634.43,0.00021095,2]
[379977951,1755456641997,-480.0,0.00021095,2]
[379977953,1755456642006,-480.0,0.00021095,2]
[379977955,1755456642015,-487.17,0.00021095,2]
[379977957,1755456642025,-480.0,0.00021095,2]
[379977959,1755456642034,-480.0,0.00021095,2]
[379977961,1755456642043,-480.0,0.00021095,2]
[379977963,1755456642053,-480.0,0.00021095,2]
[379977964,1755456642063,-480.0,0.00021095,2]
[379977966,1755456642073,-480.0,0.00021095,2]
[379977968,1755456642083,-260.0,0.00021348,2]
[379977970,1755456642092,-722.47,0.00021369,2]
[379977972,1755456642102,-480.0,0.00021369,2]
[379977974,1755456642111,-1098.01,0.00021369,2]
[379977976,1755456642120,-480.0,0.00021369,2]
[379977978,1755456642130,-480.0,0.00021369,2]
[379977980,1755456642139,-634.43,0.00021369,2]
[379977982,1755456642148,-527.35436017,0.00021369,2]
[379977984,1755456642157,-480.0,0.00021369,2]
[379977986,1755456642167,-487.17,0.00021369,2]
[379977988,1755456642176,-480.0,0.00021369,2]
[379977990,1755456642185,-480.0,0.00021369,2]
[379977992,1755456642194,-480.0,0.00021369,2]
[379977994,1755456642203,-480.0,0.00021369,2]
[379977996,1755456642212,-480.0,0.00021369,2]
[379977998,1755456642222,-480.0,0.00021369,2]
[379978000,1755456642231,-2781.72518857,0.00021391,2]
[379978002,1755456642240,-6273.2022054,0.0002141,2]
[379978004,1755456642249,-1000.0,0.00021432,2]
[379978006,1755456642258,-1500.0,0.00021432,2]
[379978008,1755456642268,-1000.0,0.00021432,2]
[379978010,1755456642277,-1500.0,0.00021479,2]
[379978012,1755456642286,-500.0,0.00021479,2]
[379978014,1755456642295,-1500.0,0.00021492,2]
[379978016,1755456642304,-1500.0,0.00021492,2]
[379978018,1755456642313,-1500.0,0.00021509,2]
[379978020,1755456642322,-720.0,0.00021517,20]
[379978022,1755456642331,-411.63043298,0.00021611,2]
[379978024,1755456642340,-209.5,0.00021625,2]
[379978026,1755456642351,-722.47,0.00021643,2]
[379978028,1755456642360,-480.0,0.00021643,2]
[379978030,1755456642369,-1098.01,0.00021643,2]
[379978032,1755456642379,-480.0,0.00021643,2]
[379978033,1755456642388,-480.0,0.00021643,2]
[379978035,1755456642397,-634.43,0.00021643,2]
[379978037,1755456642406,-480.0,0.00021643,2]
[379978039,1755456642415,-487.17,0.00021643,2]
[379978041,1755456642424,-480.0,0.00021643,2]
[379978043,1755456642433,-480.0,0.00021643,2]
[379978045,1755456642442,-480.0,0.00021643,2]
[379978047,1755456642451,-480.0,0.00021643,2]
[379978049,1755456642460,-354.11,0.00021643,2]
[379978051,1755456642471,-480.0,0.00021643,2]
[379978053,1755456642480,-444.5986009,0.00021847,2]
[379978055,1755456642490,-360.0,0.00021896,2]
[379978057,1755456642499,-6273.2022054,0.00021913,2]
[379978059,1755456642509,-722.47,0.00021917,2]
[379978061,1755456642518,-480.0,0.00021917,2]
[379978075,1755456642641,-1098.01,0.00021917,2]
[379978077,1755456642650,-480.0,0.00021917,2]
[379978078,1755456642663,-480.0,0.00021917,2]
[379978080,1755456642672,-634.43,0.00021917,2]
[379978082,1755456642681,-480.0,0.00021917,2]
[379978084,1755456642690,-487.17,0.00021917,2]
[379978086,1755456642700,-480.0,0.00021917,2]
[379978088,1755456642711,-480.0,0.00021917,2]
[379978090,1755456642721,-480.0,0.00021917,2]
[379978092,1755456642730,-480.0,0.00021917,2]
[379978094,1755456642739,-480.0,0.00021917,2]
[379978096,1755456642749,-500.0,0.0002198,2]
[379978098,1755456642758,-167.0,0.00022,2]
[379978100,1755456642767,-2000.0,0.00022027,2]
[379978102,1755456642776,-500.0,0.0002204,2]
[379978104,1755456642785,-2000.0,0.00022057,2]
[379978106,1755456642795,-722.47,0.00022191,2]
[379978108,1755456642804,-193.37,0.00022191,2]
[379978110,1755456642813,-1098.01,0.00022191,2]
[379978112,1755456642822,-480.0,0.00022191,2]
[379978114,1755456642831,-480.0,0.00022191,2]
[379978116,1755456642840,-634.43,0.00022191,2]
[379978118,1755456642849,-480.0,0.00022191,2]
[379978120,1755456642858,-487.17,0.00022191,2]
[379978122,1755456642867,-480.0,0.00022191,2]
[379978124,1755456642876,-480.0,0.00022191,2]
[379978126,1755456642885,-480.0,0.00022191,2]
[379978128,1755456642894,-480.0,0.00022191,2]
[379978130,1755456642903,-480.0,0.00022191,2]
[379978132,1755456642913,-10700.62,0.000222,7]
[379978134,1755456642922,-12682.46447135,0.000222,7]
[379978136,1755456642931,-432.88343099,0.000222,69]
[379978138,1755456642940,-432.88343097,0.000222,69]
[379978140,1755456642949,-160.0,0.000222,7]
[379978142,1755456642959,-375.77065697,0.000222,7]
[379978144,1755456642968,-417.15472785,0.000222,7]
[379978146,1755456642977,-215.71995163,0.000222,7]
[379978148,1755456642986,-642.56,0.00022267,3]
[379978150,1755456642996,-321.28,0.00022267,3]
[379978152,1755456643005,-796.146,0.00022283,2]
[379978154,1755456643014,-179.134,0.00022283,2]
[379978156,1755456643024,-190.11,0.000223,7]
[379978158,1755456643036,-6273.2022054,0.00022416,2]
[379978161,1755456643046,-460.0,0.00022444,2]
[379978164,1755456643055,-1285.1,0.00022455,3]
[379978166,1755456643064,-722.47,0.00022465,2]
[379978168,1755456643073,-1098.01,0.00022465,2]
[379978170,1755456643083,-480.0,0.00022465,2]
[379978172,1755456643092,-480.0,0.00022465,2]
[379978174,1755456643101,-634.43,0.00022465,2]
[379978176,1755456643111,-480.0,0.00022465,2]
[379978178,1755456643120,-487.17,0.00022465,2]
[379978180,1755456643129,-480.0,0.00022465,2]
[379978182,1755456643139,-480.0,0.00022465,2]
[379978183,1755456643149,-480.0,0.00022465,2]
[379978185,1755456643158,-480.0,0.00022465,2]
[379978187,1755456643167,-480.0,0.00022465,2]
[379978189,1755456643176,-2781.72518857,0.00022529,2]
[379978191,1755456643185,-279.34,0.00022565,2]
[379978193,1755456643195,-707.53527838,0.00022575,2]
[379978195,1755456643204,-8564.08284501,0.00022739,7]
[379978197,1755456643214,-722.47,0.00022739,2]
[379978199,1755456643223,-1098.01,0.00022739,2]
[379978201,1755456643233,-163.0858523,0.00022739,2]
[379978203,1755456643242,-480.0,0.00022739,2]
[379978205,1755456643251,-634.43,0.00022739,2]
[379978207,1755456643261,-480.0,0.00022739,2]
[379978209,1755456643270,-487.17,0.00022739,2]
[379978211,1755456643279,-480.0,0.00022739,2]
[379978213,1755456643288,-480.0,0.00022739,2]
[379978215,1755456643297,-521.48,0.00022739,2]
[379978217,1755456643316,-540.98,0.00022739,2]
[379978219,1755456643329,-480.0,0.00022739,2]
[379978221,1755456643338,-587.0,0.00022776,2]
[379978223,1755456643348,-151.0,0.000228,10]
[379978225,1755456643357,-444.5986009,0.00022823,2]
[379978227,1755456643367,-285.37552865,0.00022904,8]
[379978229,1755456643377,-6273.2022054,0.0002292,2]
[379978231,1755456643388,-560.0,0.00022992,2]
[379978233,1755456643397,-160.0,0.00023,2]
[379978235,1755456643407,-722.47,0.00023013,2]
[379978236,1755456643418,-1098.01,0.00023013,2]
[379978237,1755456643427,-634.43,0.00023013,2]
[379978239,1755456643437,-487.17,0.00023013,2]
[379978241,1755456643447,-480.0,0.00023013,2]
[379978243,1755456643457,-432.88343097,0.00023076,73]
[379978245,1755456643467,-151.0,0.000232,10]
[379978247,1755456643476,-722.47,0.00023287,2]
[379978249,1755456643485,-1098.01,0.00023287,2]
[379978250,1755456643494,-634.43,0.00023287,2]
[379978251,1755456643503,-487.17,0.00023287,2]
[379978252,1755456643512,-349.09,0.00023287,2]
[379978253,1755456643521,-413.145217,0.00023288,2]
[379978254,1755456643530,-6273.2022054,0.00023423,2]
[379978255,1755456643539,-4602.25635344,0.000235,2]
[379978256,1755456643548,-349.17,0.00023506,2]
[379978257,1755456643557,-660.0,0.0002354,2]
[379978258,1755456643566,-722.47,0.00023561,2]
[379978259,1755456643574,-1098.01,0.00023561,2]
[379978260,1755456643585,-634.43,0.00023561,2]
[379978261,1755456643594,-487.17,0.00023561,2]
[379978262,1755456643603,-3375.77,0.000236,7]
[379978263,1755456643612,-151.0,0.000236,5]
[379978264,1755456643621,-2781.72518857,0.00023668,2]
[379978265,1755456643630,-864.0,0.00023668,20]
[379978266,1755456643639,-10700.62,0.000237,7]
[379978267,1755456643648,-178.07179926,0.00023708,2]
[379978268,1755456643660,-700.0,0.00023712,2]
[379978269,1755456643670,-1780.7179926,0.00023718,2]
[379978270,1755456643678,-178.07179926,0.00023734,2]
[379978271,1755456643688,-1780.7179926,0.0002376,2]
[379978272,1755456643699,-444.5986009,0.00023798,2]
[379978273,1755456643708,-722.47,0.00023835,2]
[379978274,1755456643717,-1098.01,0.00023835,2]
[379978275,1755456643727,-634.43,0.00023835,2]
[379978276,1755456643737,-487.17,0.00023835,2]
[379978277,1755456643747,-972.0,0.00023888,2]
[379978278,1755456643757,-637.0,0.00023888,2]
[379978279,1755456643766,-2153.0,0.00023888,2]
[379978280,1755456643775,-2326.13826636,0.000239,2]
[379978281,1755456643784,-6273.2022054,0.00023926,2]
[379978282,1755456643793,-816.985,0.0002393,2]
[379978283,1755456643804,-2200.0,0.0002393,2]
[379978285,1755456643813,-843.71309931,0.00024,7]
[379978287,1755456643823,-843.71309931,0.00024,10]
[379978289,1755456643833,-160.0,0.00024,7]
[379978291,1755456643842,-160.0,0.00024,10]
[379978293,1755456643852,-151.0,0.00024,6]
[379978295,1755456643861,-232.1512529,0.00024,7]
[379978297,1755456643872,-232.1512529,0.00024,10]
[379978299,1755456643881,-528.48506731,0.00024,7]
[379978301,1755456643890,-528.48506731,0.00024,10]
[379978303,1755456643898,-160.0,0.00024,7]
[379978305,1755456643907,-160.0,0.00024,10]
[379978307,1755456643917,-216.83204348,0.00024,7]
[379978309,1755456643926,-216.83204348,0.00024,10]
[379978311,1755456643935,-160.0,0.00024,7]
[379978313,1755456643943,-160.0,0.00024,10]
[379978315,1755456643952,-151.0,0.00024045,5]
[379978316,1755456643961,-760.0,0.00024088,2]
[379978318,1755456643971,-722.47,0.00024109,2]
[379978320,1755456643980,-1098.01,0.00024109,2]
[379978322,1755456643989,-634.43,0.00024109,2]
[379978324,1755456643998,-487.17,0.00024109,2]
[379978325,1755456644008,-160.7855539,0.00024167,2]
[379978326,1755456644017,-3064.88550305,0.00024205,2]
[379978327,1755456644027,-491.8276158,0.00024356,2]
[379978328,1755456644036,-722.47,0.00024383,2]
[379978329,1755456644045,-1098.01,0.00024383,2]
[379978330,1755456644054,-634.43,0.00024383,2]
[379978331,1755456644064,-487.17,0.00024383,2]
[379978332,1755456644073,-6273.2022054,0.00024429,2]
[379978333,1755456644083,-419.01,0.00024446,2]
[379978334,1755456644092,-151.0,0.000245,9]
[379978335,1755456644101,-151.0,0.00024636,5]
[379978336,1755456644111,-860.0,0.00024636,2]
[379978337,1755456644121,-722.47,0.00024657,2]
[379978338,1755456644130,-1098.01,0.00024657,2]
[379978340,1755456644140,-634.43,0.00024657,2]
[379978342,1755456644149,-487.17,0.00024657,2]
[379978344,1755456644158,-200.0,0.00024658,15]
[379978345,1755456644167,-245.0,0.00024715,2]
[379978347,1755456644177,-151.0,0.00024715,2]
[379978349,1755456644186,-151.0,0.00024715,2]
[379978351,1755456644196,-151.0,0.00024715,2]
[379978353,1755456644207,-151.0,0.00024715,2]
[379978355,1755456644216,-235.23179678,0.00024715,2]
[379978357,1755456644227,-151.0,0.00024715,2]
[379978359,1755456644237,-151.0,0.00024715,2]
[379978361,1755456644247,-603.0,0.00024715,2]
[379978363,1755456644256,-151.0,0.00024715,2]
[379978365,1755456644265,-151.0,0.00024715,2]
[379978367,1755456644277,-151.0,0.00024715,2]
[379978370,1755456644311,-445.0,0.00024715,2]
[379978374,1755456644366,-151.0,0.00024715,2]
[379978378,1755456644398,-151.0,0.00024715,2]
[379978380,1755456644409,-151.0,0.00024715,2]
[379978381,1755456644420,-151.0,0.00024715,2]
[379978384,1755456644431,-151.2655407,0.00024715,2]
[379978385,1755456644441,-1071.0,0.00024742,2]
[379978387,1755456644451,-500.0,0.00024773,2]
[379978389,1755456644461,-500.0,0.00024773,2]
[379978391,1755456644471,-500.0,0.00024773,2]
[379978394,1755456644481,-500.0,0.00024773,2]
[379978396,1755456644491,-340.84167788,0.00024773,2]
[379978398,1755456644500,-158.62313276,0.00024773,2]
[379978399,1755456644510,-500.0,0.00024773,2]
[379978401,1755456644520,-573.29265701,0.00024773,2]
[379978403,1755456644530,-500.0,0.00024773,2]
[379978405,1755456644539,-158.61449762,0.00024773,2]
[379978408,1755456644549,-400.51360892,0.00024773,2]
[379978410,1755456644559,-444.5986009,0.00024773,2]
[379978412,1755456644570,-201353.55489749,0.000248,2]
[379978414,1755456644579,-23961.02,0.000248,2]
[379978416,1755456644591,-3375.77,0.000248,7]
[379978418,1755456644600,-12682.46447135,0.000248,7]
[379978420,1755456644609,-843.71309931,0.000248,7]
[379978422,1755456644619,-160.0,0.000248,7]
[379978424,1755456644629,-232.1512529,0.000248,7]
[379978426,1755456644638,-160.0,0.000248,7]
[379978428,1755456644647,-375.77065697,0.000248,7]
[379978429,1755456644660,-528.48506731,0.000248,7]
[379978431,1755456644670,-39630.96028841,0.000248,2]
[379978442,1755456644758,-820.20000026,0.000248,2]
[379978456,1755456644895,-2764.5168336,0.000248,2]
[379978626,1755456646521,-230.30679887,0.00019451,2]
[379978628,1755456646531,-2133.44316219,0.000248,2]
[379978630,1755456646541,-1846.3999998,0.000248,2]
[379979573,1755456948928,1000.0,0.00018077,2]
[379979574,1755457093784,167.540263,0.00027397,120]
[379979575,1755457120679,351.393592,0.00013699,2]
[379979576,1755457311452,202.795596,0.00018371,2]
[379979577,1755457326609,2192.77362686,0.00018371,2]
[379979578,1755457326634,1003.66675293,0.00018371,2]
[379979579,1755457357627,168.6489485,0.00018069,2]
[379979580,1755457399831,3827.68429857,0.00017955,2]
[379979581,1755457399852,5000.0,0.00017955,2]
[379979582,1755457399872,5000.0,0.00017955,2]
[379979583,1755457399894,5000.0,0.00017955,2]
[379979584,1755457399915,5000.0,0.00017955,2]
[379979585,1755457399935,5000.0,0.00017955,2]
[379979586,1755457399955,5000.0,0.00017955,2]
[379979587,1755457399976,5000.0,0.00017955,2]
[379979588,1755457399998,5000.0,0.00017955,2]
[379979589,1755457400022,3248.39785163,0.00017955,2]
[379979590,1755457401342,227.5339067,0.00018313,2]
[379979591,1755457410352,926.70621488,0.00018371,2]
[379979592,1755457418730,597.36202679,0.00018371,2]
[379979593,1755457418752,4402.63797321,0.00018371,2]
[379979594,1755457470816,597.36202679,0.00017861,2]
[379979595,1755457470839,3.34228021,0.00017861,2]
[379979596,1755457471121,333.9792152,0.00018094,2]
[379979597,1755457493620,1542.68475713,0.00018313,2]
[379979598,1755457505209,1209.0240815,0.00018371,2]
[379979599,1755457520413,677.44489093,0.00018371,2]
[379979601,1755457564474,1233.52477503,0.0001785,2]
[379979602,1755457564502,8766.47522497,0.0001785,2]
[379979603,1755457613801,127572.90532263,0.00018371,2]
[379979604,1755457616989,164.0,7.9e-07,2]
[379979612,1755457832779,-344.33782068,0.00018413,2]
[379979613,1755457832788,-1508.50750976,0.00018413,2]
[379979614,1755457832797,-293.67436788,0.00018553,2]
[379979615,1755457832807,-210.17774633,0.00018653,2]
[379979616,1755457832819,-969.08678734,0.00018653,2]
[379979617,1755457832829,-293.67436784,0.00018659,2]
[379979618,1755457832838,-160.0,0.00018752,2]
[379979619,1755457832847,-293.67436784,0.00018765,2]
[379979620,1755457832858,-1200.0,0.00018869,2]
[379979621,1755457832868,-300.0,0.0001887,2]
[379979622,1755457832877,-300.0,0.0001887,2]
[379979623,1755457832886,-300.0,0.0001887,2]
[379979624,1755457832895,-300.0,0.0001887,2]
[379979625,1755457832904,-300.0,0.0001887,2]
[379979626,1755457832913,-2714.66581063,0.00018871,2]
[379979629,1755457832923,-151.88360325,0.00018872,2]
[379979631,1755457832933,-1616.98246236,0.000189,2]
[379979634,1755457832943,-1200.0,0.00018972,2]
[379979637,1755457832952,-792.53,0.00019068,3]
[379979639,1755457832962,-396.26,0.00019068,3]
[379979640,1755457832971,-198.13,0.00019068,3]
[379979642,1755457832980,-594.43,0.00019068,3]
[379979644,1755457832989,-324.98,0.00019068,3]
[379979646,1755457832998,-500.0,0.00019077,2]
[379979648,1755457833007,-500.0,0.00019077,2]
[379979650,1755457833016,-500.0,0.00019077,2]
[379979651,1755457833026,-500.0,0.00019077,2]
[379979652,1755457833036,-157.25250987,0.00019077,2]
[379979653,1755457833046,-495.27221174,0.00019077,2]
[379979654,1755457833056,-500.0,0.00019077,2]
[379979655,1755457833065,-500.0,0.00019077,2]
[379979657,1755457833075,-500.0,0.00019077,2]
[379979659,1755457833084,-500.0,0.00019077,2]
[379979660,1755457833094,-398.38,0.00019077,2]
[379979661,1755457833103,-500.0,0.00019077,2]
[379979662,1755457833113,-500.0,0.00019077,2]
[379979663,1755457833123,-379.75791587,0.00019077,2]
[379979664,1755457833133,-500.0,0.00019077,2]
[379979666,1755457833143,-500.0,0.00019077,2]
[379979668,1755457833152,-633.17751202,0.00019077,2]
[379979670,1755457833163,-500.0,0.00019077,2]
[379979672,1755457833172,-500.0,0.00019077,2]
[379979674,1755457833182,-335.94880585,0.00019077,2]
[379979676,1755457833191,-500.0,0.00019077,2]
[379979678,1755457833200,-500.0,0.00019077,2]
[379979680,1755457833210,-500.0,0.00019077,2]
[379979682,1755457833219,-500.0,0.00019077,2]
[379979684,1755457833229,-500.0,0.00019077,2]
[379979686,1755457833239,-500.0,0.00019077,2]
[379979688,1755457833250,-500.0,0.00019077,2]
[379979690,1755457833260,-500.0,0.00019077,2]
[379979692,1755457833270,-499.9773286,0.00019077,2]
[379979694,1755457833279,-500.0,0.00019077,2]
[379979696,1755457833288,-500.0,0.00019077,2]
[379979698,1755457833297,-500.0,0.00019077,2]
[379979700,1755457833306,-500.0,0.00019077,2]
[379979702,1755457833316,-500.0,0.00019077,2]
[379979704,1755457833329,-500.0,0.00019077,2]
[379979706,1755457833338,-500.0,0.00019077,2]
[379979708,1755457833347,-500.0,0.00019077,2]
[379979710,1755457833357,-187.22962091,0.00019077,2]
[379979712,1755457833367,-500.0,0.00019077,2]
[379979714,1755457833378,-500.0,0.00019077,2]
[379979715,1755457833387,-500.0,0.00019077,2]
[379979718,1755457833397,-609.79789083,0.00019077,2]
[379979719,1755457833407,-500.0,0.00019077,2]
[379979722,1755457833417,-500.0,0.00019077,2]
[379979723,1755457833427,-500.0,0.00019077,2]
[379979725,1755457833437,-500.0,0.00019077,2]